[Event "Reykjavik Open 2024"]
[Site "Reykjavik"]
[Date "2024.03.17"]
[Round "4.34"]
[White "Hjartarson, Johann"]
[Black "Li, Harry"]
[Result "1-0"]
[ECO "C78"]
[WhiteElo "2460"]
[BlackElo "2107"]
[Annotator "TA"]
[PlyCount "59"]
[EventDate "2024.03.12"]
[EventCountry "ISL"]
[SourceTitle "playchess.com"]
[Source "ChessBase"]
[SourceQuality "1"]
[TimeControl "40/5400+30:1800+30"]

{[%evp 17,59,20,46,18,9,-8,12,10,7,0,0,0,7,5,4,0,0,0,0,0,0,0,0,0,0,0,24,14,100,95,93,105,129,127,464,460,437,424,1149,1113,29996,29997,29997,29996]} 1. e4 {[%emt 0:02:10]} e5 {[%emt 0:00:05]} 2. Nf3 {[%emt 0:00:26]} Nc6 {[%emt 0:00:03]} 3. Bb5 {[%emt 0:00:44]} a6 {[%emt 0:00:06]} 4. Ba4 {[%emt 0:00:05]} Nf6 {[%emt 0:00:03]} 5. O-O {[%emt 0:00:08]} b5 {[%emt 0:00:03]} 6. Bb3 {[%emt 0:00:06]} Bc5 {[%emt 0:00:04]} 7. c3 {[%emt 0:02:17]} d6 {[%emt 0:00:10]} 8. d4 {[%emt 0:01:11]} Bb6 {[%emt 0:00:08]} 9. a4 {[%emt 0:01:02]} Rb8 {[%emt 0:02:29]} 10. Be3 {[%emt 0:03:49][%cal Oa4a5]} O-O {[%emt 0:02:59]} 11. Re1 {[%emt 0:02:05]} Re8 {[%emt 0:04:09]} 12. Nbd2 {[%emt 0:10:08] The position is equal.} h6 {[%emt 0:03:28]} 13. axb5 {[%emt 0:01:07]} axb5 {[%emt 0:01:11]} (13... exd4 {feels hotter.} 14. Bxh6 dxc3 15. bxc3 Ng4) 14. h3 {[%emt 0:00:30]} exd4 {[%emt 0:01:08]} 15. cxd4 {[%emt 0:03:03]} Nb4 {[%emt 0:00:05][%cal Oc7c5]} 16. d5 {[%emt 0:06:18]} Nd3 {[%emt 0:10:26]} 17. Re2 {[%emt 0:00:24]} Nxb2 {[%emt 0:00:26]} 18. Qc2 {[%emt 0:00:34] Black must now prevent Bxb6.} Na4 {[%emt 0:04:10]} 19. Bxa4 {[%emt 0:00:27]} bxa4 {[%emt 0:00:02]} 20. Rxa4 {[%emt 0:00:19]} Bd7 {[%emt 0:00:23]} 21. Ra3 {[%emt 0:01:00][%cal Ba4a3,Ba3a7,Ba7c7][%mdl 32]} Bxe3 {[%emt 0:05:01]} 22. Rexe3 {[%emt 0:00:44][%cal Be2e3,Be3g3,Bg3g7][%mdl 32]} Rb4 {[%emt 0:19:41]} (22... Rb6 $11 {keeps the balance.}) 23. Ra7 $16 {[%emt 0:02:24]} Qb8 {[%emt 0:01:35]} 24. Rxc7 {[%emt 0:04:10] White is more active.} (24. Qxc7 Qxc7 25. Rxc7 Ba4 $16) 24... Ba4 {[%emt 0:00:35]} 25. Qc3 {[%emt 0:01:17] Nh4 would now be deadly.} Bd1 $2 {[%emt 0:05:46][%mdl 8192] [#] This move loses the game for Black.} (25... Qb6 $16 {is a better chance.}) 26. Nh4 $1 $18 {[%emt 0:06:00]} (26. Nd4 Rxd4 $17) 26... Rb2 {[%emt 0:02:56]} 27. Rg3 {[%emt 0:00:50]} (27. Nf5 Rc2 28. Qxc2 (28. Nxh6+ $2 Kh7 $19) 28... Bxc2 29. Rxc2 Nxe4 $11) 27... Nh5 {[%emt 0:11:58] [#]} (27... Bg4 $142 28. Nhf3 (28. hxg4 Rxd2 29. Qxd2 Qxc7 $11) (28. Rxg4 Nxg4 29. hxg4 Rxd2 $11) 28... h5 29. hxg4 hxg4) 28. Nf5 $1 {[%emt 0:01:02][%csl LRd6,LRg7,LRh6][%cal Rg3g7] White wants to mate with Rxg7+.} Rc2 {[%emt 0:01:14]} (28... Re5 29. Rc8+) 29. Rxg7+ {[%emt 0:00:15]} (29. Nxh6+ $2 {is the wrong capture.} Kh7 30. Nxf7 Qxc7 31. Ng5+ Kg8 32. Qxc7 Rxc7 $19) 29... Kh8 {[%emt 0:00:03]} 30. Qe3 {[%emt 0:01:05] Weighted Error Value: White=0.03 (flawless) /Black=0.74.  Loses game:     	---       	Black=1      Mistake:       	---       	Black=2      Inaccurate:     	---       	Black=1      OK:         	White=7     	Black=8      Best:        	White=2     	---        Strong:       	White=2     	---} 1-0

[Event "Reykjavik Open 2024"]
[Site "Reykjavik"]
[Date "2024.03.17"]
[Round "4.35"]
[White "Strathmann, Sacha"]
[Black "Larkin, Vladyslav"]
[Result "0-1"]
[ECO "B48"]
[WhiteElo "2129"]
[BlackElo "2450"]
[Annotator "TA"]
[PlyCount "152"]
[EventDate "2024.03.12"]
[EventCountry "ISL"]
[SourceTitle "playchess.com"]
[Source "ChessBase"]
[SourceQuality "1"]
[TimeControl "40/5400+30:1800+30"]

{[%evp 71,152,-128,-128,-124,-131,-552,-537,-512,-313,-286,-201,-344,-306,-348,-318,-350,-332,-291,-305,-613,-558,-1768,-1854,-842,-1214,-2345,-2202,-2893,-1708,-29950,-29950,-12825,-4610,-5608,-2598,-2598,-6103,-9871,-4631,-12795,-7106,-7536,-572,-1573,-168,-29948,-29953,-29962,-29968,-29969,-29969,-29968,-29964,-29953,-168,-168,-168,-169,-185,-29970,-29969,-29969,-112,-112,0,-12317,-114,-134,-134,-134,-134,-134,0,-134,-134,-29970,-29967,-29967,-29959,-29984,-29985,-29988,-29988]} 1. e4 {[%emt 0:04:26]} c5 {[%emt 0:00:12]} 2. Nf3 {[%emt 0:00:09]} e6 {[%emt 0:00:05]} 3. d4 {[%emt 0:00:19]} cxd4 {[%emt 0:00:05]} 4. Nxd4 {[%emt 0:00:08]} a6 {[%emt 0:00:05]} 5. Nc3 {[%emt 0:00:16]} b5 {[%emt 0:00:08]} 6. Bd3 {[%emt 0:00:53]} Bb7 {[%emt 0:00:04]} 7. O-O {[%emt 0:01:47]} Nc6 {[%emt 0:00:04]} 8. Be3 {[%emt 0:04:33]} Qc7 {[%emt 0:02:10]} 9. Qe2 {[%emt 0:10:07]} Nf6 {[%emt 0:03:16]} 10. a3 {[%emt 0:06:39] ist old school (10.f4).} h5 {[%emt 0:04:38] B48: Sizilianisch (Paulsen-Variante).} 11. h3 {[%emt 0:02:57]} Rc8 {[%emt 0:00:24]} 12. f4 {[%emt 0:02:57]} h4 {[%emt 0:00:14]} 13. Qf2 {[%emt 0:06:51]} Nxd4 {[%emt 0:04:11]} 14. Bxd4 {[%emt 0:00:10]} Be7 {[%emt 0:10:38]} 15. Rfe1 $146 {[%emt 0:08:41]} ({Predecessor:} 15. b4 Nh5 16. Ne2 O-O 17. Rac1 Qb8 18. e5 d6 19. Qe3 Qc7 20. Rf2 Qd7 21. Rcf1 f5 22. Nc1 Bd5 {½-½ Worek,J (2270)-Vitak,P (2263) CZE-chT2E 1819 2018 (8.2)}) 15... Nh5 {[%emt 0:00:44]} 16. f5 {[%emt 0:03:22]} Bc5 {[%emt 0:13:46]} 17. Ne2 {[%emt 0:05:51]} Nf6 {[%emt 0:20:50]} 18. b4 {[%emt 0:02:04]} Bd6 {[%emt 0:03:15]} 19. Qe3 {[%emt 0:04:46]} Qc6 {[%emt 0:04:54]} 20. Bb2 {[%emt 0:08:24]} e5 {[%emt 0:06:18]} 21. Nc3 {[%emt 0:01:06]} Bc7 {[%emt 0:01:30]} 22. Kh2 {[%emt 0:01:22]} Bb6 {[%emt 0:05:29]} 23. Qc1 {[%emt 0:00:34]} Bf2 {[%emt 0:02:16]} 24. Re2 {[%emt 0:00:06]} Qb6 {[%emt 0:02:51]} 25. Qf1 {[%emt 0:04:28]} Bg3+ {[%emt 0:00:16]} 26. Kh1 {[%emt 0:00:15]} Nh5 {[%emt 0:00:21]} 27. Qg1 {[%emt 0:03:26]} Qc7 {[%emt 0:00:16]} 28. Qa7 {[%emt 0:05:37]} Bf4 {[%emt 0:00:10]} 29. Kg1 {[%emt 0:00:44]} Ng3 {[%emt 0:04:25]} 30. Ree1 {[%emt 0:03:29]} Bd2 {[%emt 0:00:53]} 31. Red1 {[%emt 0:00:37]} Bxc3 {[%emt 0:03:27]} 32. Bxc3 {[%emt 0:00:06]} d6 {[%emt 0:03:47]} 33. Be1 {[%emt 0:01:13]} Nxe4 {[%emt 0:00:04]} 34. Bxe4 {[%emt 0:03:03]} Bxe4 {[%emt 0:00:03]} 35. Qxc7 {[%emt 0:03:05]} Rxc7 {[%emt 0:00:03]} 36. Rxd6 {[%emt 0:00:07]} Rxc2 {[%emt 0:00:04]} 37. Bf2 {[%emt 0:00:12]} f6 {[%emt 0:00:58]} 38. Rxa6 $2 {[%emt 0:00:47][%mdl 8192]} (38. Rad1 $17 O-O (38... Bxf5 $2 39. Rd8+ Kf7 40. Rxh8 $18) 39. Rxa6) 38... Rh5 $1 $19 {[%emt 0:00:10]} (38... Bxf5 39. Ra8+ Bc8 40. a4 bxa4 41. b5 $15) 39. Re1 {[%emt 0:00:52]} Rxf5 {[%emt 0:00:30]} 40. Rxe4 {[%emt 0:01:05]} Rfxf2 {[%emt 0:00:04]} 41. Ra8+ {[%emt 0:32:23]} Kf7 {[%emt 0:30:37]} 42. Ra7+ {[%emt 0:00:38]} Kg6 $1 {[%emt 0:03:17]} 43. Rg4+ {[%emt 0:00:23]} Kf5 {[%emt 0:00:04]} 44. Raxg7 {[%emt 0:00:12]} Rf4 $1 {[%emt 0:02:35]} 45. a4 $2 {[%emt 0:00:00]} (45. Rxf4+ Kxf4 46. Rg4+ Ke3 47. Rxh4) 45... bxa4 $19 {[%emt 0:00:00]} 46. Rxf4+ {[%emt 0:00:00]} Kxf4 {[%emt 0:00:00]} 47. Ra7 {[%emt 0:00:00]} Ra2 {[%emt 0:00:00]} 48. b5 {[%emt 0:00:00]} e4 {[%emt 0:00:00]} 49. b6 {[%emt 0:00:00]} f5 {[%emt 0:00:00]} 50. Kf1 {[%emt 0:00:00]} Ke3 {[%emt 0:00:00]} 51. Kg1 {[%emt 0:00:00]} Rb2 {[%emt 0:00:00]} (51... f4 $142 52. Ra5 Ra1+ 53. Kh2 Rb1 54. Rxa4 Rxb6) 52. Rxa4 $19 {[%emt 0:00:00]} Rb1+ {[%emt 0:00:00]} 53. Kh2 {[%emt 0:00:00]} Rxb6 {[%emt 0:00:00]} 54. Ra3+ {[%emt 0:00:00]} Kf4 {[%emt 0:00:00]} 55. Kg1 {[%emt 0:00:00]} e3 {[%emt 0:00:00]} 56. Kf1 {[%emt 0:00:00]} Re6 {[%emt 0:00:00]} (56... Rb2 $142 57. Rc3 Rb4) 57. Ra8 $19 {[%emt 0:00:00]} Rc6 $2 {[%emt 0:00:00]} (57... e2+ 58. Ke1 $11) (57... Kg3 {Weiss muss nun ...e2+ beachten.} 58. Rg8+ Kh2) 58. Ra3 $2 {[%emt 0:00:00]} (58. Rg8 $19) 58... Ke4 {[%emt 0:00:42]} 59. Ke2 {[%emt 0:00:37]} Rc2+ {[%emt 0:00:05]} 60. Kf1 {[%emt 0:00:11]} Kd4 {[%emt 0:05:51]} 61. Rb3 {[%emt 0:00:50]} Rd2 {[%emt 0:00:53]} 62. Rb8 {[%emt 0:02:16]} Kc3 $2 {[%emt 0:00:30]} (62... Rf2+ 63. Kg1 f4 64. Rb7 Kd3 65. Rb3+ Kc2 66. Ra3 Kb2 67. Ra6 Rc2 68. Kf1 Kc1 69. Ke1 Rxg2 70. Rf6 Rf2 71. Re6 Rh2 72. Rc6+ Kb2 73. Rc8 f3 (73... Rxh3 $2 74. Re8 $19) 74. Rb8+ Kc1 75. Rc8+ Rc2 76. Rb8 Re2+ 77. Kf1 Rd2 78. Kg1 Rg2+ 79. Kh1 Rg3 80. Kh2 f2 81. Rf8 Kd2 (81... e2 82. Rxf2 e1=Q 83. Rc2+ Kd1 84. Rc1+ Ke2 85. Rxe1+ Kxe1 86. Kh1 Kf1 87. Kh2 Re3 88. Kh1 Rxh3#) 82. Rf6 Ke1 83. Re6 e2 (83... f1=R 84. Rc6 e2 85. Rd6 Rff3 86. Rd3 Kf1 87. Rxf3+ Rxf3 88. Kh1 Rxh3#) (83... f1=Q 84. Rxe3+) 84. Rb6 f1=Q (84... f1=R 85. Rb8 Rff3 86. Rb3 Kf2 87. Rxf3+ Rxf3 88. Kh1 Rxh3#) 85. Rb1+ Kf2 86. Rxf1+ exf1=N+ 87. Kh1 Rxh3#) 63. Rc8+ $19 {[%emt 0:00:13]} Kd3 $1 {[%emt 0:00:18]} 64. Rd8+ {[%emt 0:00:36]} Kc2 {[%emt 0:00:07]} 65. Re8 $2 {[%emt 0:00:09]} (65. Ra8 $19) 65... f4 {[%emt 0:00:16]} 66. Ra8 {[%emt 0:00:59] [#]} Rd1+ $2 {[%emt 0:01:36]} (66... Kc1 $1 {setzt Matt} 67. Ra1+ Kb2 68. Ra7 Rf2+ 69. Kg1 Rc2 70. Kf1 Kc1 71. Ke1 Rxg2 72. Rf7 Rf2 73. Rc7+ Kb2 74. Rc4 Kb3 75. Rc8 Rh2 76. Kf1 f3 (76... Rxh3 $2 77. Re8 $19) 77. Kg1 e2 (77... Rxh3 {ist ein Selbstmatt.} 78. Rb8+ Kc2 79. Rd8 f2+ 80. Kg2 Rg3+ 81. Kf1 Rg1+ 82. Ke2 f1=Q+ 83. Kxe3 Qf5 84. Rd2+ Kc3 85. Rg2 Rf1 86. Rc2+ Kxc2 87. Kd4 Rf4+ 88. Ke3 Qe5#) 78. Kxh2 e1=Q (78... e1=R 79. Rc3+ Kxc3 $11) 79. Rb8+ Kc2 80. Rc8+ Kd1 81. Rd8+ Qd2+ 82. Rxd2+ Kxd2 83. Kg1 Ke2 84. Kh1 f2 85. Kg2 f1=Q+ (85... f1=R {wird mattgesetzt.} 86. Kh2 Rf3 87. Kg1 Rg3+ 88. Kh1 Kf2 89. Kh2 Rb3 90. Kh1 Rxh3#) 86. Kh2 Qf4+ 87. Kh1 Kf3 88. Kg1 Qg5+ 89. Kh2 Qg2#) 67. Ke2 $17 {[%emt 0:00:26]} Rd2+ $2 {[%emt 0:00:00][%mdl 8192]} (67... Rd6 $17 68. Rc8+ Kb3 69. Rb8+ Kc4 70. Rc8+ Kd4) 68. Kf1 $1 $19 {[%emt 0:00:19] [#]} Kb3 $2 {[%emt 0:01:43]} (68... Kc1 $1 $19 {ist viel giftiger. ( -> ...Rf2+)} 69. Ra1+ Kb2) 69. Rb8+ $17 {[%emt 0:00:26]} Kc3 {[%emt 0:00:03]} 70. Rc8+ {[%emt 0:00:15]} Kd3 {[%emt 0:00:24]} 71. Rd8+ {[%emt 0:00:08]} Kc2 {[%emt 0:00:02]} 72. Ra8 $1 {[%emt 0:00:10]} Rf2+ {[%emt 0:00:02]} 73. Kg1 $2 {[%emt 0:00:11][%mdl 8192]} (73. Ke1 $17) 73... Kb1 {[%emt 0:02:26]} 74. Ra4 {[%emt 0:01:54]} Rc2 {[%emt 0:01:25]} 75. Rxf4 {[%emt 0:01:49]} Rc1+ {[%emt 0:00:11]} 76. Rf1 {[%emt 0:00:28]} e2 {[%emt 0:00:05]} 0-1

[Event "Reykjavik Open 2024"]
[Site "Reykjavik"]
[Date "2024.03.17"]
[Round "4.36"]
[White "Fantinel, Thibault"]
[Black "Barthel, Ansgar"]
[Result "1-0"]
[ECO "B04"]
[WhiteElo "2421"]
[BlackElo "2073"]
[Annotator "TA"]
[PlyCount "155"]
[EventDate "2024.03.12"]
[EventCountry "ISL"]
[SourceTitle "playchess.com"]
[Source "ChessBase"]
[SourceQuality "1"]
[TimeControl "40/5400+30:1800+30"]

{[%evp 19,155,21,25,28,37,30,33,31,27,40,43,54,35,46,71,66,70,0,0,-31,97,85,89,87,98,98,102,95,95,106,90,84,84,94,106,98,97,95,97,100,100,101,145,154,145,140,162,162,143,133,202,83,83,77,77,80,77,70,70,70,83,87,87,83,82,48,82,48,60,61,72,63,76,75,134,19,59,51,62,61,72,74,74,60,80,81,295,294,287,174,162,111,198,117,124,120,220,219,235,228,270,198,206,162,160,103,137,135,164,77,116,118,233,214,386,437,427,425,459,461,638,630,1132,994,891,811,651,599,1979,795,691,79,29983,29984,29984,29985,29985,29986]} 1. e4 {[%emt 0:02:00][%cal Be2e4,Be4e5][%mdl 32]} Nf6 {[%emt 0:00:09]} 2. e5 {[%emt 0:00:05]} Nd5 {[%emt 0:00:04]} 3. d4 {[%emt 0:00:05]} d6 {[%emt 0:00:03]} 4. c4 {[%emt 0:00:32]} Nb6 {[%emt 0:00:05]} 5. exd6 {[%emt 0:00:05]} cxd6 {[%emt 0:00:07]} 6. Nc3 {[%emt 0:00:07]} g6 {[%emt 0:00:03]} 7. h3 {[%emt 0:00:24]} Bg7 {[%emt 0:00:08]} 8. Nf3 {[%emt 0:00:07]} O-O {[%emt 0:00:05]} 9. Be2 {[%emt 0:00:05]} Nc6 {[%emt 0:03:14]} 10. O-O {[%emt 0:01:31]} Bf5 {[%emt 0:00:31]} 11. d5 {[%emt 0:00:31]} Na5 {[%emt 0:00:04]} 12. Nd4 {[%emt 0:00:26]} Naxc4 {[%emt 0:00:07]} 13. a4 {[%emt 0:00:19] aiming for Nxf5. White is slightly better.} a5 {[%emt 0:00:05]} 14. Nxf5 {[%emt 0:00:33]} gxf5 {[%emt 0:00:06]} 15. Re1 {[%emt 0:00:08]} Ne5 {[%emt 0:00:13]} 16. Bb5 {[%emt 0:00:35]} Nbd7 {[%emt 0:19:05]} 17. Qh5 {[%emt 0:14:58]} e6 {[%emt 0:20:47]} 18. Bh6 {[%emt 0:22:46] White has more active pieces.} ({White should try} 18. Bg5 $14 Nf6 19. Qd1) 18... Bxh6 $15 {[%emt 0:08:46]} 19. Qxh6 {[%emt 0:00:05]} Qf6 {[%emt 0:00:48] [#]} (19... Nc5 $1 $15 {keeps the upper hand.}) 20. Qxf6 $1 $16 {[%emt 0:05:36]} Nxf6 {[%emt 0:00:09]} 21. f4 {[%emt 0:00:07]} Ng6 {[%emt 0:00:21]} 22. dxe6 {[%emt 0:00:04]} fxe6 {[%emt 0:00:28]} 23. Rxe6 {[%emt 0:00:03]} Nxf4 {[%emt 0:01:03]} 24. Rxd6 {[%emt 0:00:03]} Rad8 {[%emt 0:13:16]} 25. Rad1 {[%emt 0:00:07]} Rxd6 {[%emt 0:00:18]} 26. Rxd6 {[%emt 0:00:05]} Ne4 {[%emt 0:00:38]} 27. Rd4 {[%emt 0:14:11]} Nxc3 {[%emt 0:06:00]} 28. bxc3 {[%emt 0:00:05][%mdl 4096] Endgame. KRB-KRN} Ng6 {[%emt 0:01:43]} 29. Rd7 {[%emt 0:01:52]} b6 {[%emt 0:03:41]} 30. Rd6 {[%emt 0:08:05]} Rc8 {[%emt 0:08:21]} 31. Rxb6 {[%emt 0:05:43]} Rxc3 {[%emt 0:00:07]} 32. Ra6 {[%emt 0:00:02]} Rc1+ {[%emt 0:05:17]} 33. Kh2 {[%emt 0:02:23]} f4 {[%emt 0:02:34]} 34. Rxa5 {[%emt 0:00:45]} Nh4 {[%emt 0:04:32]} (34... Kf7 $16 {might work better.} 35. Ra7+ Kf6 36. Rxh7 Ra1) 35. Be2 {[%emt 0:01:23]} (35. Bd3 $18) 35... Rc2 {[%emt 0:00:44]} 36. Rg5+ {[%emt 0:05:03]} Kh8 {[%emt 0:02:46]} 37. Re5 {[%emt 0:01:12]} f3 {[%emt 0:00:25]} 38. Re8+ {[%emt 0:00:10]} Kg7 {[%emt 0:00:04]} 39. gxf3 {[%emt 0:00:05] Kg3 is the strong threat.} Nxf3+ {[%emt 0:00:23]} 40. Kg3 {[%emt 0:00:38]} Nd4 {[%emt 0:00:37]} 41. Bg4 {[%emt 0:31:41]} Rc3+ {[%emt 0:31:11]} 42. Kg2 {[%emt 0:03:03]} Ra3 {[%emt 0:00:00]} 43. Ra8 {[%emt 0:00:00]} Nc2 {[%emt 0:00:00]} 44. Bd7 {[%emt 0:00:00]} Ne3+ {[%emt 0:00:00]} 45. Kh2 {[%emt 0:00:00]} Nc4 {[%emt 0:00:00]} 46. Bb5 {[%emt 0:00:00]} Nd6 {[%emt 0:00:00]} ({Better is} 46... Nd2) 47. Bf1 {[%emt 0:00:00]} (47. Ra7+ $16 Kh8 48. Bf1) 47... Ra2+ {[%emt 0:00:00]} 48. Kg1 {[%emt 0:00:00]} Ra1 {[%emt 0:00:00]} 49. Kg2 {[%emt 0:00:00]} Nf5 {[%emt 0:00:00]} 50. Bd3 {[%emt 0:00:00]} Nh4+ {[%emt 0:00:57]} 51. Kf2 {[%emt 0:00:19]} Ra2+ {[%emt 0:00:58]} 52. Ke3 {[%emt 0:01:27]} Ng2+ $2 {[%emt 0:02:26]} (52... Ra3 $16) 53. Kd4 $18 {[%emt 0:05:43]} Nf4 {[%emt 0:00:18][%cal Oa2d2]} 54. Bf5 {[%emt 0:01:05]} Kf6 {[%emt 0:05:31]} 55. Bc8 {[%emt 0:04:34]} (55. Bxh7 $18 {Threatens to win with Bg8.} Nxh3 56. a5) 55... Ne6+ {[%emt 0:00:00] [#]} (55... Ra3 $16 {keeps fighting.}) 56. Kc4 {[%emt 0:01:47]} ({White should play} 56. Kc3 $1 $18 {Strongly threatening Ra6.} Nf4 57. Kb3) 56... Rc2+ $16 {[%emt 0:00:00]} 57. Kd3 {[%emt 0:01:48]} Rc7 {[%emt 0:00:00]} (57... Rc1 $16) 58. a5 $18 {[%emt 0:01:52]} Nc5+ {[%emt 0:00:00]} 59. Ke3 {[%emt 0:00:32]} Re7+ {[%emt 0:00:00]} 60. Kf3 {[%emt 0:01:09]} Nd3 {[%emt 0:00:27]} 61. Ra6+ {[%emt 0:01:41]} Ke5 {[%emt 0:00:29]} 62. Bg4 {[%emt 0:00:49]} (62. Rc6 $142) 62... Kd5 {[%emt 0:00:16]} 63. Kg3 {[%emt 0:00:23]} Kc5 {[%emt 0:00:14]} 64. Ra8 {[%emt 0:00:19]} (64. Rh6 $18) 64... Kb5 {[%emt 0:00:41]} 65. Bf5 {[%emt 0:00:28]} Nc5 {[%emt 0:00:12]} (65... Rg7+ $16 66. Kf3 Ne5+ 67. Kf4 Ng6+ 68. Ke3 Re7+ 69. Be4 Re6) 66. Kg4 {[%emt 0:00:33]} Nb3 $2 {[%emt 0:01:09]} (66... Ne4 67. Kf4 Nc5) 67. Rb8+ {[%emt 0:00:19]} Kc4 {[%emt 0:00:22]} 68. a6 {[%emt 0:00:27]} Nc5 {[%emt 0:00:34] Inhibits Rb7.} 69. Bc8 {[%emt 0:00:36]} Ra7 {[%emt 0:00:37]} 70. Rb6 {[%emt 0:00:05]} Kd5 {[%emt 0:00:30]} 71. Bb7+ {[%emt 0:00:20]} Ke5 {[%emt 0:00:28]} 72. Kg5 {[%emt 0:00:20]} Ne6+ {[%emt 0:00:26]} 73. Kh6 {[%emt 0:00:25][%cal Oh3h4]} Nf4 {[%emt 0:00:20]} 74. Rb3 {[%emt 0:00:43]} ({Less strong is} 74. Kxh7 Nxh3 75. Kg7 Nf4 76. Rb5+ Ke6 $18) (74. h4 $142 Kf5 75. Rb4 (75. Kxh7 Kg4 $18)) 74... Ne6 {[%emt 0:00:53]} 75. Kxh7 $2 {[%emt 0:00:13]} (75. h4 $18 {and White stays clearly on top. Black must now prevent Re3+.} Nc5 76. Rb6 (76. Rb5 Kd6 77. Rxc5 Kxc5 78. h5 Kd4 79. Kxh7 Kc5 80. h6 Kb6)) 75... Nc5 $2 {[%emt 0:00:11][%mdl 8192]} (75... Nc7 $16) 76. Rb5 {[%emt 0:00:02] White mates.} Kd6 {[%emt 0:00:05] [#]} 77. Rxc5 $1 {[%emt 0:00:09]} Kxc5 {[%emt 0:00:07]} 78. Kg7 {[%emt 0:00:07] Weighted Error Value: White=0.18 (very precise) /Black=0.24 (precise) .  Loses game:     	---       	Black=1      Mistake:       	White=7     	Black=7      Inaccurate:     	White=4     	Black=7      OK:         	White=28    	Black=16     Best:        	White=7     	Black=8      Strong:       	White=1     	---} 1-0

[Event "Reykjavik Open 2024"]
[Site "Reykjavik"]
[Date "2024.03.17"]
[Round "4.37"]
[White "Gikas, Andreas Basilius"]
[Black "Katz, Alexander"]
[Result "0-1"]
[ECO "B77"]
[WhiteElo "2104"]
[BlackElo "2418"]
[Annotator "RC"]
[PlyCount "60"]
[EventDate "2024.03.12"]
[EventCountry "ISL"]
[SourceTitle "playchess.com"]
[Source "ChessBase"]
[SourceQuality "1"]
[TimeControl "40/5400+30:1800+30"]

1. e4 {[%emt 0:00:03]} c5 {[%emt 0:00:06]} 2. Nf3 {[%emt 0:00:11]} d6 {[%emt 0:00:14]} 3. d4 {[%emt 0:00:18]} cxd4 {[%emt 0:00:03]} 4. Nxd4 {[%emt 0:00:06]} Nf6 {[%emt 0:00:05]} 5. Nc3 {[%emt 0:00:07]} g6 {[%emt 0:00:22]} 6. Be3 {[%emt 0:00:31]} Bg7 {[%emt 0:00:33]} 7. f3 {[%emt 0:00:11]} O-O {[%emt 0:00:12]} 8. Bc4 {[%emt 0:00:37]} Nc6 {[%emt 0:00:38]} 9. Bb3 {[%emt 0:00:11]} Bd7 {[%emt 0:01:14]} 10. h4 {[%emt 0:00:18]} h5 {[%emt 0:09:45]} 11. Qd2 {[%emt 0:01:27]} Rc8 {[%emt 0:03:14]} 12. Nxc6 {[%emt 0:02:08]} Bxc6 {[%emt 0:03:24]} 13. O-O-O {[%emt 0:04:05]} a5 {[%emt 0:05:39]} 14. Bh6 {[%emt 0:11:45]} Kh7 {[%emt 0:10:11]} 15. Bxg7 {[%emt 0:00:38]} Kxg7 {[%emt 0:00:02]} 16. Qd4 {[%emt 0:16:54]} b5 {[%emt 0:04:34]} 17. g4 {[%emt 0:07:55]} a4 {[%emt 0:03:27]} 18. g5 {[%emt 0:02:54]} axb3 {[%emt 0:02:16]} 19. gxf6+ {[%emt 0:04:12]} exf6 {[%emt 0:00:13]} 20. axb3 {[%emt 0:03:21]} Qa5 {[%emt 0:02:24]} 21. b4 {[%emt 0:06:08]} Qa8 {[%emt 0:08:24]} 22. Kb1 {[%emt 0:03:48]} Rc7 {[%emt 0:03:40]} 23. Nd5 {[%emt 0:02:42]} Bxd5 {[%emt 0:03:38]} 24. Qxd5 {[%emt 0:00:09]} Qa4 {[%emt 0:00:12]} 25. c3 {[%emt 0:02:14]} Ra8 {[%emt 0:02:10]} 26. Rhg1 {[%emt 0:03:58]} Rc4 {[%emt 0:01:57]} 27. f4 {[%emt 0:02:41]} Qa2+ {[%emt 0:01:28]} 28. Kc2 {[%emt 0:04:31]} Ra3 {[%emt 0:03:10]} 29. Rg3 {[%emt 0:03:51]} Qb3+ {[%emt 0:01:07]} 30. Kb1 {[%emt 0:00:39]} Ra2 {[%emt 0:00:19]} 0-1

[Event "Reykjavik Open 2024"]
[Site "Reykjavik"]
[Date "2024.03.17"]
[Round "4.38"]
[White "Botez, Alexandra"]
[Black "Rognvaldsson, Geir"]
[Result "1-0"]
[ECO "E10"]
[WhiteElo "1986"]
[BlackElo "1699"]
[Annotator "NA RC"]
[PlyCount "57"]
[EventDate "2024.03.12"]
[EventCountry "ISL"]
[SourceTitle "playchess.com"]
[Source "ChessBase"]
[SourceQuality "1"]
[TimeControl "40/5400+30:1800+30"]

1. d4 {[%emt 0:00:43]} Nf6 {[%emt 0:00:25]} 2. c4 {[%emt 0:00:42]} e6 {[%emt 0:00:30]} 3. Nc3 {[%emt 0:00:23]} c5 {[%emt 0:00:41]} 4. d5 {[%emt 0:00:05]} d6 {[%emt 0:00:33]} 5. Nf3 {[%emt 0:00:25]} Nbd7 {[%emt 0:01:31]} 6. h3 {[%emt 0:02:20]} Be7 {[%emt 0:01:56]} 7. dxe6 {[%emt 0:03:44]} fxe6 {[%emt 0:00:21]} 8. e4 {[%emt 0:01:55]} O-O {[%emt 0:01:17]} 9. Be3 {[%emt 0:01:28]} a6 {[%emt 0:05:58]} 10. Qd2 {[%emt 0:03:06]} Nb8 {[%emt 0:07:48]} 11. O-O-O {[%emt 0:03:23]} Nc6 {[%emt 0:00:24]} 12. e5 {[%emt 0:00:37]} dxe5 {[%emt 0:02:28]} 13. Qxd8 {[%emt 0:00:06]} Nxd8 {[%emt 0:02:29]} 14. Nxe5 {[%emt 0:00:14]} b6 {[%emt 0:02:37]} 15. Kb1 {[%emt 0:00:49]} Bb7 {[%emt 0:03:46]} 16. f3 {[%emt 0:15:32]} Nc6 {[%emt 0:04:30]} 17. Nd7 {[%emt 0:00:45]} Nxd7 {[%emt 0:04:43]} 18. Rxd7 {[%emt 0:00:08]} Rab8 {[%emt 0:00:28]} 19. Be2 {[%emt 0:01:39]} Bf6 {[%emt 0:01:12]} 20. Na4 {[%emt 0:02:11]} Nd4 {[%emt 0:11:03]} 21. Bxd4 {[%emt 0:11:54]} Bxd4 {[%emt 0:00:32]} 22. Rd6 {[%emt 0:00:24]} b5 {[%emt 0:03:03]} 23. Nb6 {[%emt 0:06:14]} bxc4 {[%emt 0:05:44]} 24. Bxc4 {[%emt 0:04:48]} Bd5 {[%emt 0:00:48]} 25. Nxd5 {[%emt 0:16:43]} Rxb2+ {[%emt 0:00:56]} 26. Kc1 {[%emt 0:00:05]} exd5 {[%emt 0:00:19]} 27. Rxd5 {[%emt 0:00:34]} Bf6 {[%emt 0:03:35]} 28. Rd8+ {[%emt 0:00:47]} Kh8 {[%emt 0:00:30]} 29. Rxf8# {[%emt 0:00:07]} 1-0